bitfinex/quotes_BTCUSD_20250902
["timestamp","ask_amount","ask_price","bid_price","bid_amount"]
[1756814675788,1.64722032,109880.0,109870.0,0.75194148]
[1756814675992,1.66657033,109880.0,109870.0,0.75194148]
[1756814676206,1.6930518,109880.0,109870.0,0.75194148]
[1756814676419,1.72867386,109880.0,109870.0,0.75494148]
[1756814676602,1.72767386,109880.0,109870.0,0.75394148]
[1756814676805,1.72767386,109880.0,109870.0,0.75194148]
[1756814677015,1.7419245,109880.0,109870.0,0.75194148]
[1756814677253,1.7429245,109880.0,109870.0,0.75494148]
[1756814677699,1.76624392,109880.0,109870.0,0.75194148]
[1756814677929,1.80209392,109880.0,109870.0,0.75194148]
[1756814678153,1.7777745,109880.0,109870.0,0.18693362]
[1756814678390,1.6197745,109880.0,109870.0,0.02391739]
[1756814678614,0.52203331,109870.0,109860.0,0.0004]
[1756814678848,1.32648015,109870.0,109860.0,0.0004]
[1756814679072,1.33153015,109870.0,109860.0,0.0004]
[1756814680193,1.33253015,109870.0,109860.0,0.0014]
[1756814680412,0.18208302,109840.0,109820.0,0.27304052]
[1756814680627,0.18208302,109840.0,109830.0,0.0021]
[1756814680628,0.34008302,109840.0,109830.0,0.0021]
[1756814681690,0.18222439,109840.0,109830.0,0.1841996]
[1756814681913,0.34018439,109840.0,109830.0,0.23841332]
[1756814682550,0.34018439,109840.0,109830.0,0.24153332]
[1756814683230,0.34118439,109840.0,109830.0,0.24253332]
[1756814683448,0.34218439,109840.0,109830.0,0.24753332]
[1756814683995,0.00214137,109840.0,109830.0,0.24753332]
[1756814684218,0.00214137,109840.0,109830.0,0.73361298]
[1756814684432,0.00214137,109840.0,109830.0,0.36038813]
[1756814684643,0.00214137,109840.0,109830.0,0.73361298]
[1756814686524,0.00214137,109840.0,109830.0,0.77208298]
[1756814687367,0.00214137,109840.0,109830.0,0.51810813]
[1756814687573,0.00214137,109840.0,109830.0,0.46389441]
[1756814687776,0.18422439,109840.0,109830.0,0.46389441]
[1756814688207,0.00214137,109840.0,109830.0,0.3510396]
[1756814688798,0.00214137,109840.0,109830.0,0.44295559]
[1756814689237,0.18628439,109840.0,109830.0,0.28211559]
[1756814689444,0.18628439,109840.0,109830.0,0.0081]
[1756814689652,0.56249924,109840.0,109830.0,0.006]
[1756814690503,0.18927439,109840.0,109830.0,0.006]
[1756814690681,0.57162884,109840.0,109830.0,0.006]
[1756814691940,0.35293399,109840.0,109830.0,0.0081]
[1756814692347,0.37239539,109840.0,109830.0,0.0081]
[1756814692980,0.37538539,109840.0,109830.0,0.006]
[1756814693400,1.08861024,109840.0,109830.0,0.006]
[1756814694310,1.18686242,109840.0,109830.0,0.006]
[1756814694533,1.65444669,109840.0,109830.0,0.006]
[1756814694903,1.75647366,109840.0,109830.0,0.006]
[1756814695143,1.72814958,109840.0,109830.0,0.006]
[1756814695356,1.72714958,109840.0,109830.0,0.005]
[1756814695561,1.81906557,109840.0,109830.0,0.005]
[1756814695968,1.82006557,109840.0,109830.0,0.006]
[1756814696169,1.79474615,109840.0,109830.0,0.005]
[1756814696590,1.79574615,109840.0,109830.0,0.006]
[1756814696806,1.79474615,109840.0,109830.0,0.001]
[1756814697050,1.79574615,109840.0,109830.0,0.004]
[1756814697254,1.19739779,109840.0,109830.0,0.004]
[1756814697471,1.31193104,109840.0,109830.0,0.0031]
[1756814697684,0.69676204,109840.0,109830.0,0.0041]
[1756814697929,0.78550723,109840.0,109830.0,0.0031]
[1756814698155,0.78650723,109840.0,109830.0,0.0031]
[1756814698391,0.78856723,109840.0,109830.0,0.0031]
[1756814698613,0.78656723,109840.0,109830.0,0.0021]
[1756814698873,0.82822463,109840.0,109830.0,0.0031]
[1756814699092,1.20543948,109840.0,109830.0,0.001]
[1756814699316,1.38448869,109840.0,109830.0,0.001]
[1756814699798,1.75771354,109840.0,109830.0,0.001]
[1756814700013,1.87529745,109840.0,109830.0,0.004]
[1756814701467,1.8204919,109840.0,109830.0,0.004]
[1756814701733,1.84881598,109840.0,109830.0,1e-08]
[1756814702239,1.87529745,109840.0,109830.0,1e-08]
[1756814703365,1.96524583,109840.0,109830.0,1e-08]
[1756814704361,1.91649499,109840.0,109830.0,1e-08]
[1756814704612,1.96510291,109840.0,109830.0,1e-08]
[1756814705148,0.99039439,109840.0,109830.0,1e-08]
[1756814705381,1.05560884,109840.0,109830.0,1e-08]
[1756814705623,1.78585661,109840.0,109830.0,1e-08]
[1756814705889,1.83446453,109840.0,109830.0,1e-08]
[1756814706161,1.78605661,109840.0,109830.0,1e-08]
[1756814707211,1.78605374,109840.0,109830.0,1e-08]
[1756814707430,1.78601374,109840.0,109830.0,1e-08]
[1756814707940,1.84081891,109840.0,109830.0,1e-08]
[1756814709161,1.81249483,109840.0,109830.0,1e-08]
[1756814709383,1.62849336,109840.0,109830.0,1e-08]
[1756814709611,0.88588632,109840.0,109830.0,0.00524001]
[1756814709834,0.33084138,109840.0,109830.0,0.00524001]
[1756814710061,1.20369623,109840.0,109830.0,0.00204001]
[1756814710279,0.86369623,109840.0,109830.0,0.00204001]
[1756814710503,0.49047138,109840.0,109830.0,0.00204001]
[1756814710722,0.86158623,109840.0,109830.0,0.00204001]
[1756814711154,0.21914398,109840.0,109830.0,0.00524001]
[1756814711380,0.71033539,109840.0,109830.0,0.00524001]
[1756814711852,0.55281539,109840.0,109830.0,0.00524001]
[1756814712107,0.18422439,109840.0,109830.0,0.18961585]
[1756814712316,0.18422439,109840.0,109830.0,0.22451275]
[1756814712541,0.18422439,109840.0,109830.0,0.31642874]
[1756814712542,0.00214137,109840.0,109830.0,0.31642874]
[1756814713007,0.18422439,109840.0,109830.0,0.31642874]
[1756814717164,0.18322439,109840.0,109830.0,0.30019441]
[1756814717631,0.16507316,109850.0,109830.0,0.30019441]
[1756814717868,0.18308302,109840.0,109830.0,0.29999441]
[1756814718295,0.18308302,109840.0,109830.0,0.45823441]
[1756814718541,0.18208302,109840.0,109830.0,0.34329058]
[1756814718747,0.18208302,109840.0,109830.0,0.32039098]
[1756814718961,0.18208302,109840.0,109830.0,0.50449058]
[1756814719175,0.18208302,109840.0,109830.0,0.50249058]
[1756814719385,0.18208302,109840.0,109830.0,0.31939098]
[1756814719595,0.18308302,109840.0,109830.0,0.32239098]
[1756814719781,0.18308302,109840.0,109830.0,0.50449058]
[1756814720038,0.18308302,109840.0,109830.0,0.32239098]
[1756814720231,0.18308302,109840.0,109830.0,0.50449058]
[1756814720646,0.18408302,109840.0,109830.0,0.32439098]
[1756814720847,0.18408302,109840.0,109830.0,0.32107098]
[1756814721510,0.18619302,109840.0,109830.0,0.32107098]
[1756814721954,0.18619302,109840.0,109830.0,0.22915499]
[1756814722625,0.18619302,109840.0,109830.0,0.22911499]
[1756814723947,0.18933302,109840.0,109830.0,0.16508]
[1756814724169,0.18933302,109840.0,109830.0,0.16304]
[1756814724393,0.18619302,109840.0,109830.0,0.16508]
[1756814724576,0.18619302,109840.0,109830.0,0.00704]
[1756814725146,0.18933302,109840.0,109830.0,0.005]
[1756814725405,0.92139364,109840.0,109830.0,0.005]
[1756814725635,1.26139364,109840.0,109830.0,0.005]
[1756814727123,1.35330963,109840.0,109830.0,0.005]
[1756814728239,1.39492194,109840.0,109830.0,0.005]
[1756814728674,1.41436732,109840.0,109830.0,0.005]
[1756814728884,1.45671732,109840.0,109830.0,0.005]
[1756814729090,1.46304655,109840.0,109830.0,0.005]
[1756814729311,1.55496254,109840.0,109830.0,0.005]
[1756814731063,0.98078192,109840.0,109830.0,0.005]
[1756814731304,1.55496254,109840.0,109830.0,0.005]
[1756814731958,1.39708254,109840.0,109830.0,0.005]
[1756814732207,1.55480254,109840.0,109830.0,0.005]
[1756814733511,1.39708254,109840.0,109830.0,0.005]
[1756814733737,1.55476254,109840.0,109830.0,0.005]
[1756814733972,1.55476834,109840.0,109830.0,0.005]
[1756814736305,1.57906843,109840.0,109830.0,0.005]
[1756814737655,1.57806843,109840.0,109830.0,0.002]
[1756814737872,0.18211619,109820.0,109810.0,0.0004]
[1756814738087,0.33975619,109820.0,109810.0,0.00087133]
[1756814738298,0.91393681,109820.0,109810.0,0.00291133]
[1756814739217,0.91595681,109820.0,109810.0,0.00291133]
[1756814739858,0.91695681,109820.0,109810.0,0.00391133]
[1756814740281,0.91493681,109820.0,109810.0,0.00391133]
[1756814740488,0.75829681,109820.0,109810.0,0.01113133]
[1756814740698,0.91585681,109820.0,109810.0,0.01113133]
[1756814740883,0.91787681,109820.0,109810.0,0.00791133]
[1756814741091,0.91787681,109820.0,109810.0,0.00587133]
[1756814741092,0.92086681,109820.0,109810.0,0.00587133]
[1756814741505,0.92086681,109820.0,109810.0,0.00787133]
[1756814741810,0.92086681,109820.0,109810.0,0.00587133]
[1756814742360,1.0127828,109820.0,109810.0,0.00587133]
[1756814742793,1.10469879,109820.0,109810.0,0.00587133]
[1756814743220,1.44469879,109820.0,109810.0,0.00587133]
[1756814743666,1.46415025,109820.0,109810.0,0.00587133]
[1756814744324,1.46215025,109820.0,109810.0,0.00087133]
[1756814744746,1.46415025,109820.0,109810.0,0.00387133]
[1756814744987,0.63949364,109820.0,109810.0,0.00387133]
[1756814745199,1.3465728,109820.0,109810.0,0.00709133]
[1756814745407,0.77239218,109820.0,109810.0,0.00809133]
[1756814745615,1.3485928,109820.0,109810.0,0.00487133]
[1756814745828,1.3495928,109820.0,109810.0,0.00587133]
[1756814746300,1.44449879,109820.0,109810.0,0.00387133]
[1756814746512,1.46395765,109820.0,109810.0,0.00387133]
[1756814747099,1.47029164,109820.0,109810.0,0.00387133]
[1756814747575,1.49677311,109820.0,109810.0,0.00387133]
[1756814747783,1.09631339,109810.0,109800.0,0.010637]
[1756814748020,1.44704927,109810.0,109800.0,0.010637]
[1756814748260,1.45205927,109810.0,109800.0,0.010637]
[1756814748713,1.49844516,109810.0,109800.0,0.010637]
[1756814749593,1.33682822,109810.0,109800.0,0.015637]
[1756814749809,1.34316471,109810.0,109800.0,0.015637]
[1756814750021,1.50048471,109810.0,109800.0,0.015637]
[1756814750453,1.50048329,109810.0,109800.0,0.015637]
[1756814750793,1.34316329,109810.0,109800.0,0.015637]
[1756814751035,1.41541226,109810.0,109800.0,0.017637]
[1756814751317,1.41541226,109810.0,109800.0,0.015637]
[1756814751562,1.41840226,109810.0,109800.0,0.015637]
[1756814751785,1.4427287,109810.0,109800.0,0.015637]
[1756814752001,1.53464469,109810.0,109800.0,0.015637]
[1756814753128,0.96046407,109810.0,109800.0,0.015637]
[1756814753357,1.53464469,109810.0,109800.0,0.015637]
[1756814754382,1.53464469,109810.0,109800.0,1e-08]
[1756814754587,1.56300467,109810.0,109800.0,1e-08]
[1756814755434,1.53464469,109810.0,109800.0,1e-08]
[1756814756414,1.56705068,109810.0,109800.0,1e-08]
[1756814756800,1.40973068,109810.0,109800.0,1e-08]
[1756814757015,1.56705068,109810.0,109800.0,1e-08]
[1756814757219,1.40973068,109810.0,109800.0,1e-08]
[1756814757430,1.56705068,109810.0,109800.0,1e-08]
[1756814757693,1.71113766,109810.0,109800.0,1e-08]
[1756814758939,1.34901386,109810.0,109800.0,0.00200001]
[1756814759169,1.15928787,109810.0,109800.0,0.00200001]
[1756814759333,1.31660787,109810.0,109800.0,0.00200001]
[1756814760255,1.31960821,109810.0,109800.0,0.00200001]
[1756814760458,1.711148,109810.0,109800.0,1e-08]
[1756814762063,1.68682156,109810.0,109800.0,1e-08]
[1756814762283,0.52218254,109780.0,109770.0,0.00322]
[1756814762509,1.03863634,109780.0,109770.0,0.00322]
[1756814762747,0.67950254,109780.0,109770.0,0.00522]
[1756814762932,1.04770422,109780.0,109770.0,0.00522]
[1756814763886,1.04817584,109780.0,109770.0,0.00522]
[1756814764138,1.58849826,109780.0,109770.0,0.00522]
[1756814764789,1.58949826,109780.0,109770.0,0.00522]
[1756814765002,1.59149826,109780.0,109770.0,0.00522]
[1756814765433,1.09149826,109780.0,109770.0,0.00522]
[1756814768182,1.09351826,109780.0,109770.0,0.002]
[1756814768835,0.18219914,109770.0,109760.0,0.00362]
[1756814769043,0.69865294,109770.0,109760.0,0.00362]
[1756814769288,0.69865294,109770.0,109760.0,0.0056]
[1756814769735,0.69865294,109770.0,109760.0,0.00534]
[1756814769946,0.34163914,109770.0,109760.0,0.00238]
[1756814770169,1.40309674,109770.0,109760.0,0.0004]
[1756814770379,1.59563237,109770.0,109760.0,0.0004]
[1756814770628,1.62635789,109770.0,109760.0,0.0004]
[1756814770835,1.46903789,109770.0,109760.0,0.0004]
[1756814771056,1.62116789,109770.0,109760.0,0.00238]
[1756814771272,0.90802029,109770.0,109760.0,0.00238]
[1756814771490,1.62662107,109770.0,109760.0,0.00238]
[1756814771703,1.46718107,109770.0,109760.0,0.00238]
[1756814771915,0.82379614,109770.0,109760.0,0.00238]
[1756814772133,1.18309653,109770.0,109760.0,0.00238]
[1756814772357,1.18325653,109770.0,109760.0,0.00534]
[1756814772568,0.57444015,109770.0,109760.0,0.00534]
[1756814772785,1.06061502,109770.0,109760.0,0.00534]
[1756814773448,0.70866833,109770.0,109760.0,0.00534]
[1756814773675,1.5488686,109770.0,109760.0,0.0004]
[1756814774319,0.66735782,109770.0,109760.0,0.00238]
[1756814774551,0.93474222,109770.0,109760.0,0.00534]
[1756814774788,0.21106833,109770.0,109760.0,0.00534]
[1756814775025,0.20471463,109770.0,109760.0,0.00761769]
[1756814775247,0.72720502,109770.0,109760.0,0.0004]
[1756814775462,1.06720502,109770.0,109760.0,0.0004]
[1756814775677,1.06189502,109770.0,109760.0,0.00534]
[1756814775929,0.54471463,109770.0,109760.0,0.00534]
[1756814776154,1.04265953,109770.0,109760.0,0.00534]
[1756814776389,1.06430223,109770.0,109760.0,0.00238]
[1756814776617,1.09563444,109770.0,109760.0,0.0004]
[1756814776839,1.54685082,109770.0,109760.0,0.0004]
[1756814777500,1.20254938,109770.0,109760.0,0.0004]
[1756814777715,0.82825004,109770.0,109760.0,0.0004]
[1756814777922,1.20254938,109770.0,109760.0,0.0004]
[1756814779339,1.78278408,109770.0,109760.0,0.0004]
[1756814779554,1.7544241,109770.0,109760.0,0.0004]
[1756814779766,1.49498772,109770.0,109760.0,0.0004]
[1756814779986,1.67718686,109770.0,109760.0,0.0004]
[1756814780209,1.67718397,109770.0,109760.0,0.0004]
[1756814780418,1.4925425,109770.0,109760.0,0.0004]
[1756814780631,1.27684316,109770.0,109760.0,0.0004]
[1756814781092,0.71896696,109770.0,109760.0,0.00238]
[1756814781307,0.85316555,109770.0,109760.0,0.00238]
[1756814781536,1.07205489,109770.0,109760.0,0.0004]
[1756814781754,1.23069489,109770.0,109760.0,0.00238]
[1756814782211,1.23069489,109770.0,109760.0,0.0004]
[1756814782432,1.1355889,109770.0,109760.0,0.00238]
[1756814782667,1.1355889,109770.0,109760.0,0.0004]
[1756814782898,1.23069489,109770.0,109760.0,0.0004]
[1756814783795,1.13877428,109770.0,109760.0,0.0004]
[1756814784008,1.60498961,109770.0,109760.0,0.0004]
[1756814784226,0.18221574,109760.0,109750.0,0.00365092]
[1756814784435,1.57388242,109760.0,109750.0,0.00365092]
[1756814784652,1.57600242,109760.0,109750.0,0.00365092]
[1756814784862,1.55271095,109760.0,109750.0,0.00365092]
[1756814785716,1.55371095,109760.0,109750.0,0.00465092]
[1756814786165,1.55371095,109760.0,109750.0,1e-08]
[1756814786166,1.64562694,109760.0,109750.0,1e-08]
[1756814786384,1.73945833,109760.0,109750.0,1e-08]
[1756814786609,1.73945833,109760.0,109750.0,0.00100001]
[1756814786610,1.92494438,109760.0,109750.0,0.00100001]
[1756814786831,0.34,109730.0,109720.0,0.00048]
[1756814787046,1.0552449,109730.0,109720.0,0.00048]
[1756814787275,1.52677023,109730.0,109720.0,0.00048]
[1756814787493,0.95413016,109730.0,109720.0,0.00048]
[1756814787714,1.70272884,109730.0,109720.0,0.00048]
[1756814787935,1.67436886,109730.0,109720.0,0.00048]
[1756814788149,1.51355598,109730.0,109720.0,0.00048]
[1756814788361,1.64839872,109730.0,109720.0,0.00048]
[1756814789021,1.50394833,109730.0,109720.0,0.00048]
[1756814789277,1.66262833,109730.0,109720.0,0.00048]
[1756814789511,1.66762833,109730.0,109720.0,0.00048]
[1756814789721,1.69297692,109730.0,109720.0,0.00048]
[1756814790139,1.69197692,109730.0,109720.0,0.00048]
[1756814790357,1.69397692,109730.0,109720.0,0.00048]
[1756814790566,1.68763822,109730.0,109720.0,0.00048]
[1756814790778,0.52229878,109710.0,109700.0,0.00971733]
[1756814790985,1.27123864,109710.0,109700.0,0.00971733]
[1756814791198,1.11790864,109710.0,109700.0,0.00971733]
[1756814791428,1.24303368,109710.0,109700.0,0.01465733]
[1756814791641,1.23882819,109710.0,109700.0,0.01169733]
[1756814792075,1.23866819,109710.0,109700.0,0.01465733]
[1756814792287,0.84493477,109710.0,109700.0,0.01465733]
[1756814792496,1.21923411,109710.0,109700.0,0.01465733]
[1756814792710,1.21923411,109710.0,109700.0,0.01169733]
[1756814793132,1.22023411,109710.0,109700.0,0.01169733]
[1756814793345,1.22019411,109710.0,109700.0,0.01465733]
[1756814793586,1.06159411,109710.0,109700.0,0.01465733]
[1756814793799,1.22019411,109710.0,109700.0,0.01465733]
[1756814794008,1.12823812,109710.0,109700.0,0.01465733]
[1756814794150,1.13035812,109710.0,109700.0,0.01169733]
[1756814794363,1.13354812,109710.0,109700.0,0.00971733]
[1756814794575,1.3173801,109710.0,109700.0,0.00971733]
[1756814794780,1.37222155,109710.0,109700.0,0.00971733]
[1756814795219,0.64505168,109710.0,109700.0,0.00971733]
[1756814795465,1.16938891,109710.0,109700.0,0.01169733]
[1756814795916,1.16850891,109710.0,109700.0,0.01169733]
[1756814796150,1.17250891,109710.0,109700.0,0.01169733]
[1756814796635,1.17569891,109710.0,109700.0,0.00971733]
[1756814796812,1.27392879,109710.0,109700.0,0.00971733]
[1756814797395,1.11225879,109710.0,109700.0,0.00971733]
[1756814797605,1.27077879,109710.0,109700.0,0.01169733]
[1756814797815,1.27396879,109710.0,109700.0,0.00971733]
[1756814798144,1.11544879,109710.0,109700.0,0.00971733]
[1756814798350,1.27396879,109710.0,109700.0,0.00971733]
[1756814798751,1.27392879,109710.0,109700.0,0.00971733]
[1756814800544,1.32877024,109710.0,109700.0,0.00971733]
[1756814800963,1.30228877,109710.0,109700.0,0.00971733]
[1756814801314,0.89327556,109710.0,109700.0,0.01166733]
[1756814801495,0.89858702,109710.0,109700.0,0.00971733]
[1756814801721,1.26988636,109710.0,109700.0,0.00971733]
[1756814802142,1.27488636,109710.0,109700.0,0.00971733]
[1756814802343,1.26988636,109710.0,109700.0,0.00971733]
[1756814802793,1.27300636,109710.0,109700.0,0.00971733]
[1756814803035,1.11544636,109710.0,109700.0,0.00971733]
[1756814803302,1.27396636,109710.0,109700.0,0.00971733]
[1756814804029,1.27296636,109710.0,109700.0,0.00971733]
[1756814804250,1.27396636,109710.0,109700.0,0.00971733]
[1756814804469,1.11544636,109710.0,109700.0,0.00971733]
[1756814804683,1.27396636,109710.0,109700.0,0.00971733]
[1756814804899,1.11544636,109710.0,109700.0,0.00971733]
[1756814805049,1.27396636,109710.0,109700.0,0.00971733]
[1756814805476,1.27096636,109710.0,109700.0,0.00971733]
[1756814805857,1.27596636,109710.0,109700.0,0.00971733]
[1756814806065,1.27496636,109710.0,109700.0,0.00971733]
[1756814806264,1.30025874,109710.0,109700.0,0.00971733]
[1756814806677,1.29925874,109710.0,109700.0,0.00971733]
[1756814807085,1.30025874,109710.0,109700.0,0.00971733]
[1756814810241,1.07691874,109710.0,109700.0,0.00971733]
[1756814810465,1.07691874,109710.0,109690.0,0.0004]
[1756814810466,0.89661474,109700.0,109690.0,0.0004]
[1756814810672,1.26686666,109700.0,109690.0,0.0004]
[1756814810881,1.30422265,109700.0,109690.0,0.0004]
[1756814811307,1.27995298,109700.0,109690.0,0.0004]
[1756814811554,1.37186897,109700.0,109690.0,0.0004]
[1756814811983,1.37488,109700.0,109690.0,0.0004]
[1756814812396,1.79778726,109700.0,109690.0,0.0004]
[1756814812599,1.42449094,109700.0,109690.0,0.0004]
[1756814812821,1.42149094,109700.0,109690.0,0.0004]
[1756814813030,2.32127175,109700.0,109690.0,0.0004]
[1756814813234,2.39639876,109700.0,109690.0,0.0004]
[1756814813446,2.39739876,109700.0,109690.0,0.0004]
[1756814814500,2.37091729,109700.0,109690.0,0.0004]
[1756814815030,1.62231861,109700.0,109690.0,0.0004]
[1756814815246,2.37091729,109700.0,109690.0,0.0004]
[1756814816272,2.32230937,109700.0,109690.0,0.0004]
[1756814816708,2.16406937,109700.0,109690.0,0.0004]
[1756814816926,2.32222937,109700.0,109690.0,0.0004]
[1756814817142,0.89666461,109670.0,109650.0,0.00296]
[1756814817357,1.05481631,109660.0,109650.0,0.00296]
[1756814817581,0.69991177,109660.0,109650.0,0.00296]
[1756814817794,1.41995507,109660.0,109650.0,0.00491]
[1756814818426,1.42042582,109660.0,109650.0,0.00491]
[1756814818640,0.70038252,109660.0,109650.0,0.00491]
[1756814818849,1.42042582,109660.0,109650.0,0.00491]
[1756814819503,0.70038252,109660.0,109650.0,0.00491]
[1756814819720,1.42242582,109660.0,109650.0,0.00491]
[1756814819922,0.70378252,109660.0,109650.0,0.00718998]
[1756814820139,1.42382582,109660.0,109650.0,0.00718998]
[1756814820351,1.42382582,109660.0,109650.0,0.00491]
[1756814820583,0.18122555,109660.0,109650.0,0.18958852]
[1756814820797,0.7236291,109660.0,109650.0,0.00491]
[1756814821005,0.7042343,109660.0,109650.0,0.18730854]
[1756814821481,0.34421265,109660.0,109650.0,0.18730854]
[1756814821923,0.7042343,109660.0,109650.0,0.18730854]
[1756814822106,0.34421265,109660.0,109650.0,0.00491]
[1756814822250,1.06425595,109660.0,109650.0,0.00491]
[1756814823031,1.08373636,109660.0,109650.0,0.00491]
[1756814823250,0.36369306,109660.0,109650.0,0.00487]
[1756814823469,1.08373636,109660.0,109650.0,0.00487]
[1756814823904,0.52239854,109650.0,109640.0,0.00125092]
[1756814824118,1.54280953,109650.0,109640.0,0.00125092]
[1756814824336,1.74950118,109650.0,109640.0,0.00125092]
[1756814824557,0.96505978,109650.0,109640.0,0.00320092]
[1756814824779,0.93259189,109650.0,109640.0,0.0054811]
[1756814824990,1.0603006,109650.0,109640.0,0.00320092]
[1756814825201,1.0603006,109650.0,109640.0,0.00616092]
[1756814825413,1.42328225,109650.0,109640.0,0.00320092]
[1756814825631,1.45396921,109650.0,109640.0,0.00320092]
[1756814825848,0.93658756,109650.0,109640.0,0.00616092]
[1756814826062,0.91123665,109650.0,109640.0,0.00616092]
[1756814826280,1.0612206,109650.0,109640.0,0.00616092]
[1756814826508,1.0612206,109650.0,109640.0,0.19085627]
[1756814826730,0.53982206,109650.0,109640.0,0.22590475]
[1756814826951,0.002,109650.0,109640.0,0.67784239]
[1756814827189,0.003,109650.0,109640.0,0.67784239]
[1756814827606,0.003,109650.0,109640.0,0.51589074]
[1756814828685,0.003,109650.0,109640.0,0.89073216]
[1756814829348,0.56023996,109650.0,109640.0,0.00616092]
[1756814829560,0.34363854,109650.0,109640.0,0.00320092]
[1756814829772,0.18539854,109650.0,109640.0,0.00629092]
[1756814829987,0.003,109650.0,109640.0,0.28290226]
[1756814830205,0.003,109650.0,109640.0,0.28062208]
[1756814830431,0.003,109650.0,109640.0,0.36441135]
[1756814830645,0.18539854,109650.0,109640.0,0.36441135]
[1756814830855,0.003,109650.0,109640.0,0.36441135]
[1756814831092,0.003,109650.0,109640.0,0.73925277]
[1756814831539,0.003,109650.0,109640.0,1.01051306]
[1756814831768,0.003,109650.0,109640.0,1.05095306]
[1756814832204,0.003,109650.0,109640.0,1.64915306]
[1756814832445,0.00047075,109660.0,109640.0,1.59939306]
[1756814832662,0.00047075,109660.0,109650.0,0.27740453]
[1756814832879,0.00047075,109660.0,109650.0,0.29536621]
[1756814833098,0.00047075,109660.0,109650.0,1.25378792]
[1756814833311,0.00047075,109660.0,109650.0,1.35378792]
[1756814833532,0.00047075,109660.0,109650.0,1.36280381]
[1756814833748,0.102533,109700.0,109690.0,0.18233202]
[1756814833971,0.102533,109700.0,109690.0,0.58667728]
[1756814834196,0.102533,109700.0,109690.0,1.16774899]
[1756814834491,0.102533,109700.0,109690.0,1.59818899]
[1756814834981,0.102533,109700.0,109690.0,1.99833036]
[1756814835419,0.102533,109700.0,109690.0,1.99841036]
[1756814835638,0.102533,109700.0,109690.0,1.83985036]
[1756814835867,0.102533,109700.0,109690.0,1.99841036]
[1756814836093,0.105533,109700.0,109690.0,2.00241036]
[1756814836328,0.103533,109700.0,109690.0,2.00141036]
[1756814836568,0.103533,109700.0,109690.0,1.26690865]
[1756814836805,0.103533,109700.0,109690.0,0.50806938]
[1756814837051,0.102533,109700.0,109690.0,0.50815938]
[1756814837260,0.103533,109700.0,109690.0,0.51115938]
[1756814838350,0.103533,109700.0,109690.0,0.35267938]
[1756814838562,0.104533,109700.0,109690.0,0.51070938]
[1756814838774,0.2888384,109700.0,109690.0,0.23652169]
[1756814838982,0.2899684,109700.0,109690.0,0.41385371]
[1756814839193,0.2919684,109700.0,109690.0,0.57397371]
[1756814839407,0.2929684,109700.0,109690.0,0.39264169]
[1756814839661,0.86891011,109700.0,109690.0,0.0714457]
[1756814839872,0.86891011,109700.0,109690.0,0.00114137]
[1756814839873,1.20791011,109700.0,109690.0,0.00114137]
[1756814840095,1.20591011,109700.0,109690.0,0.00014137]
[1756814840319,1.20991011,109700.0,109690.0,0.00214137]
[1756814840542,1.20691011,109700.0,109690.0,0.00114137]
[1756814840984,1.21291011,109700.0,109690.0,0.00214137]
[1756814841195,1.37211011,109700.0,109690.0,0.00214137]
[1756814841626,1.37111011,109700.0,109690.0,0.00114137]
[1756814841842,1.5048961,109700.0,109690.0,0.00214137]
[1756814842301,1.54500163,109700.0,109690.0,0.00214137]
[1756814842513,1.56437934,109700.0,109690.0,0.00214137]
[1756814843933,1.38543077,109700.0,109690.0,0.00214137]
[1756814845856,0.18239854,109650.0,109640.0,0.08630092]
[1756814846107,0.18239854,109650.0,109640.0,0.17835824]
[1756814846316,0.18239854,109650.0,109640.0,0.36281341]
[1756814846569,0.18239854,109650.0,109640.0,0.18039824]
[1756814847006,1.10346025,109650.0,109640.0,0.00139225]
[1756814847220,1.10446025,109650.0,109640.0,0.00339225]
[1756814847475,1.10346025,109650.0,109640.0,0.00139225]
[1756814847915,1.10446025,109650.0,109640.0,0.00339225]
[1756814848132,0.52339854,109650.0,109640.0,0.00343225]
[1756814848353,0.52239854,109650.0,109640.0,0.00652225]
[1756814848787,0.52239854,109650.0,109640.0,0.00343225]
[1756814849205,0.53361693,109650.0,109640.0,0.00343225]
[1756814849416,0.53461693,109650.0,109640.0,0.00343225]
[1756814849908,0.53774693,109650.0,109640.0,0.00139225]
[1756814850135,1.11468864,109650.0,109640.0,0.00139225]
[1756814850370,0.53774693,109650.0,109640.0,0.00139225]
[1756814850601,0.53461693,109650.0,109640.0,0.00343225]
[1756814850790,0.53661693,109650.0,109640.0,0.00343225]
[1756814850988,0.53461693,109650.0,109640.0,0.00343225]
[1756814851205,0.53361693,109650.0,109640.0,0.00343225]
[1756814851425,0.19461693,109650.0,109640.0,0.00343225]
[1756814851657,0.19362693,109650.0,109640.0,0.00343225]
[1756814851871,0.19561693,109650.0,109640.0,0.00343225]
[1756814852535,0.19874693,109650.0,109640.0,0.00139225]
[1756814852749,0.77468864,109650.0,109640.0,0.00139225]
[1756814852965,0.77155864,109650.0,109640.0,0.00343225]
[1756814853624,0.77468864,109650.0,109640.0,0.00139225]
[1756814853881,0.53874693,109650.0,109640.0,0.00139225]
[1756814854086,1.20660463,109650.0,109640.0,0.00139225]
[1756814854317,1.22324474,109650.0,109640.0,0.00139225]
[1756814854534,1.20560463,109650.0,109640.0,0.00139225]
[1756814854712,1.20460463,109650.0,109640.0,0.00139225]
[1756814854917,1.20560463,109650.0,109640.0,0.00139225]
[1756814855102,1.20760463,109650.0,109640.0,0.00139225]
[1756814855305,1.27776463,109650.0,109640.0,0.00139225]
[1756814855652,1.36668062,109650.0,109640.0,0.00139225]
[1756814856084,1.63450438,109650.0,109640.0,0.00139225]
[1756814856880,1.66098585,109650.0,109640.0,0.00139225]
[1756814857288,0.8991667,109650.0,109640.0,0.00139225]
[1756814857490,1.47710841,109650.0,109640.0,0.00139225]
[1756814857710,1.47410841,109650.0,109640.0,0.00139225]
[1756814857872,1.31634841,109650.0,109640.0,0.00139225]
[1756814858076,0.9022867,109650.0,109640.0,0.00139225]
[1756814858301,1.47822841,109650.0,109640.0,0.00139225]
[1756814858501,0.81037071,109650.0,109640.0,0.00139225]
[1756814858713,0.19761693,109650.0,109640.0,0.00343225]
[1756814858914,0.19562693,109650.0,109640.0,0.18584742]
[1756814859176,0.35458693,109650.0,109640.0,0.0435389]
[1756814859402,0.19562693,109650.0,109640.0,0.22595407]
[1756814859796,0.19562693,109650.0,109640.0,0.0435389]
[1756814860248,0.35454693,109650.0,109640.0,0.22595407]
[1756814860646,0.93545864,109650.0,109640.0,0.0385289]
[1756814860861,0.93545864,109650.0,109640.0,0.00139225]
[1756814861079,0.35951693,109650.0,109640.0,0.00139225]
[1756814861293,0.93545864,109650.0,109640.0,0.00139225]